bitfinex-derivatives/quotes_SOLF0:USTF0_20241107
["timestamp","ask_amount","ask_price","bid_price","bid_amount"]
[1730990264753,1.6515,188.1,187.91,339.7319]
[1730990265056,1.6515,188.1,187.82,5.5224]
[1730990265057,1.6515,188.1,187.82,339.2011]
[1730990265250,20.49112769,188.0,187.83,2.3054]
[1730990265448,2.6588,187.95,187.85,2.6601]
[1730990266048,4.8873,187.99,187.85,2.6601]
[1730990267355,1.6515,187.99,187.88,20.49112769]
[1730990268157,4.3098,187.99,187.89,2.6596]
[1730990268354,1.6515,187.99,187.88,20.49112769]
[1730990269353,2.6587,187.96,187.88,20.49112769]
[1730990269755,1.6515,187.99,187.88,20.49112769]
[1730990269963,2.6588,187.95,187.88,20.49112769]
[1730990271152,1.6515,187.99,187.85,20.49112769]
[1730990271352,1.7141,187.98,187.85,20.49112769]
[1730990271959,2.659,187.94,187.88,2.6597]
[1730990273370,1.7141,187.98,187.85,20.49112769]
[1730990274064,2.6591,187.94,187.87,2.6599]
[1730990274264,1.7141,187.98,187.85,20.49112769]
[1730990275170,2.6593,187.92,187.85,23.15112769]
[1730990275760,2.6593,187.92,187.85,20.49112769]
[1730990276063,1.6757,188.02,187.91,20.49112769]
[1730990276261,49.40102624,188.09,187.83,2.3054]
[1730990276262,23.91962769,188.08,187.93,20.49112769]
[1730990276464,25.50182769,188.08,187.94,1.6566]
[1730990276665,3.3075,188.08,187.96,20.49112769]
[1730990276962,3.3075,188.08,187.98,2.6582]
[1730990277161,2.6575,188.04,187.98,2.6582]
[1730990278666,2.6573,188.06,187.99,2.6582]
[1730990279070,2.6573,188.06,187.96,20.49112769]
[1730990279263,4.3824,188.08,188.01,2.6579]
[1730990279460,1.7253,188.08,188.01,2.6579]
[1730990280373,1.7253,188.08,187.99,2.6582]
[1730990280569,1.7253,188.08,187.96,20.49112769]
[1730990280872,2.6576,188.04,187.99,2.6581]
[1730990281272,1.7253,188.08,187.96,20.49112769]
[1730990281670,1.5963,188.13,188.0,20.49112769]
[1730990281972,1.5664,188.12,188.0,20.49112769]
[1730990282172,2.6569,188.08,188.02,2.6578]
[1730990282964,2.6567,188.1,188.04,2.6574]
[1730990283180,1.5664,188.12,188.03,20.49112769]
[1730990283379,1.7174,188.16,188.03,20.49112769]
[1730990283673,2.6564,188.12,188.05,2.6572]
[1730990283874,1.7174,188.16,188.06,20.49112769]
[1730990284275,2.6562,188.13,188.07,2.6569]
[1730990284476,2.6562,188.13,188.06,20.49112769]
[1730990284776,2.6564,188.12,188.08,2.6569]
[1730990285174,1.7174,188.16,188.08,2.6569]
[1730990285574,2.6563,188.13,188.07,2.6571]
[1730990285770,22.20852769,188.16,187.98,339.0]
[1730990285975,20.49112769,188.12,187.98,339.0]
[1730990286576,7.28,188.14,187.99,20.49112769]
[1730990286977,7.28,188.14,188.03,2.6576]
[1730990287273,20.49112769,188.15,188.03,2.6576]
[1730990287478,2.6569,188.09,188.03,2.6576]
[1730990288179,20.49112769,188.15,188.03,2.6576]
[1730990288769,20.49112769,188.15,188.02,20.49112769]
[1730990288972,1.7174,188.16,188.04,20.49112769]
[1730990289173,1.7174,188.16,188.05,1.5753]
[1730990290174,2.6561,188.14,188.08,2.6568]
[1730990290576,2.6562,188.13,188.08,2.6568]
[1730990290973,1.7174,188.16,188.05,1.5753]
[1730990291277,20.49112769,188.24,188.08,20.49112769]
[1730990291478,23.69422769,188.24,188.08,20.49112769]
[1730990291676,2.6556,188.18,188.12,2.6563]
[1730990291881,23.69422769,188.24,188.11,20.49112769]
[1730990292783,2.6556,188.18,188.14,2.656]
[1730990293184,2.6551,188.21,188.15,2.6559]
[1730990293382,3.2031,188.24,188.14,20.49112769]
[1730990293879,23.69422769,188.24,188.13,2.6562]
[1730990294282,2.6555,188.19,188.13,2.6562]
[1730990294479,3.2031,188.24,188.11,20.49112769]
[1730990294673,1.6415,188.24,188.14,20.49112769]
[1730990294881,2.655,188.22,188.14,20.49112769]
[1730990295181,1.6415,188.24,188.14,20.49112769]
[1730990296088,20.49112769,188.27,188.14,20.49112769]
[1730990296686,2.6552,188.21,188.15,2.6559]
[1730990297489,2.6553,188.2,188.15,2.6559]
[1730990297687,2.6553,188.2,188.14,20.49112769]
[1730990297688,20.49112769,188.28,188.14,20.49112769]
[1730990297892,2.6557,188.17,188.1,23.14762769]
[1730990298188,22.21252769,188.25,188.1,20.49112769]
[1730990298585,2.6563,188.13,188.1,20.49112769]
[1730990298793,2.6563,188.13,188.08,339.9329]
[1730990298794,20.49112769,188.22,188.07,20.49112769]
[1730990298997,20.49112769,188.22,187.97,1.6434]
[1730990298998,20.49112769,188.16,187.97,1.6434]
[1730990299289,3.2324,188.15,188.01,2.6579]
[1730990299977,3.2324,188.15,188.0,20.49112769]
[1730990299978,20.49112769,188.12,188.0,20.49112769]
[1730990300582,2.6569,188.09,188.03,20.49112769]
[1730990301190,2.6569,188.09,188.04,2.6575]
[1730990301581,2.657,188.08,188.03,20.49112769]
[1730990301887,3.2324,188.15,188.0,20.49112769]
[1730990302082,2.6574,188.05,188.0,23.14902769]
[1730990302286,3.2324,188.15,188.0,20.49112769]
[1730990302992,2.6571,188.07,188.01,2.6579]
[1730990303187,20.49112769,188.13,187.97,361.13452769]
[1730990303393,1.6884,188.12,187.97,361.13452769]
[1730990303788,1.6884,188.12,187.97,22.13452769]
[1730990303991,20.49112769,188.1,187.93,20.49112769]
[1730990304791,2.658,188.01,187.96,2.6585]
[1730990305092,2.658,188.01,187.93,20.49112769]
[1730990305289,2.658,188.01,187.96,2.6586]
[1730990305788,2.658,188.01,187.93,20.49112769]
[1730990305989,2.6582,187.99,187.93,20.49112769]
[1730990306997,2.6582,187.99,187.93,23.15012769]
[1730990307189,3.3147,188.06,187.93,23.15012769]
[1730990307387,2.6585,187.98,187.93,23.15012769]
[1730990307694,3.3147,188.06,187.92,1.5961]
[1730990307884,20.49112769,188.04,187.87,20.49112769]
[1730990308192,1.5772,188.03,187.87,20.49112769]
[1730990308493,1.5772,188.03,187.89,2.6596]
[1730990308701,1.5772,188.03,187.87,20.49112769]
[1730990309197,2.6588,187.96,187.9,2.6594]
[1730990309793,1.5772,188.03,187.87,20.49112769]
[1730990310792,8.2772,188.03,187.87,20.49112769]
[1730990310998,20.49112769,188.0,187.87,20.49112769]
[1730990311198,2.659,187.94,187.87,23.15092769]
[1730990311499,2.659,187.94,187.87,20.49112769]
[1730990311697,20.49112769,188.0,187.87,20.49112769]
[1730990311895,20.49112769,188.0,187.85,1.6654]
[1730990312488,2.6591,187.93,187.87,2.6598]
[1730990312694,2.6591,187.93,187.85,1.6654]
[1730990313689,2.6591,187.93,187.89,2.6596]
[1730990314001,2.6591,187.93,187.87,20.49112769]
[1730990314199,8.2772,188.03,187.87,20.49112769]
[1730990314200,2.6588,187.95,187.87,20.49112769]
[1730990314897,2.6586,187.97,187.87,20.49112769]
[1730990315297,2.6586,187.97,187.91,2.6592]
[1730990315506,1.5772,188.03,187.87,20.49112769]
[1730990315689,2.6589,187.95,187.87,20.49112769]
[1730990315999,1.5772,188.03,187.87,23.15092769]
[1730990316189,20.49112769,188.0,187.87,23.15092769]
[1730990316795,20.49112769,188.0,187.86,2.66]
[1730990317396,2.6594,187.91,187.85,4.3255]
[1730990317600,20.49112769,188.0,187.85,1.6654]
[1730990317796,20.49112769,188.0,187.78,339.1986]
[1730990317797,20.49112769,187.96,187.78,339.0]
[1730990317994,20.49112769,187.93,187.76,20.49112769]
[1730990318204,2.6605,187.83,187.76,20.49112769]
[1730990319002,2.6606,187.83,187.76,20.49112769]
[1730990319201,2.6606,187.83,187.77,2.6613]
[1730990319503,2.6606,187.83,187.76,20.49112769]
[1730990319997,20.49112769,187.9,187.76,20.49112769]
[1730990320201,20.49112769,187.9,187.73,22.20962769]
[1730990320501,2.6608,187.81,187.73,22.20962769]
[1730990320698,20.49112769,187.9,187.73,22.20962769]
[1730990321902,2.6606,187.82,187.73,24.87142769]
[1730990322604,20.49112769,187.87,187.73,22.20962769]
[1730990322807,3.411,187.86,187.73,22.20962769]
[1730990323195,2.6608,187.81,187.73,22.20962769]
[1730990323401,3.411,187.86,187.73,22.20962769]
[1730990323602,9.811,187.86,187.73,22.20962769]
[1730990324710,2.6609,187.8,187.73,22.20962769]
[1730990324908,9.811,187.86,187.73,22.20962769]
[1730990325508,2.6612,187.79,187.73,22.20962769]
[1730990325809,9.811,187.86,187.7,20.49112769]
[1730990326307,2.6615,187.76,187.7,20.49112769]
[1730990326705,20.49112769,187.84,187.68,1.6969]
[1730990326908,20.49112769,187.8,187.64,0.202]
[1730990327105,20.49112769,187.8,187.63,20.49112769]
[1730990327306,20.49112769,187.77,187.63,20.49112769]
[1730990327503,3.2496,187.76,187.63,20.49112769]
[1730990327712,2.6627,187.68,187.63,20.49112769]
[1730990329099,2.6623,187.7,187.63,23.15442769]
[1730990329300,3.2496,187.76,187.63,20.49112769]
[1730990329812,3.2496,187.76,187.67,20.49112769]
[1730990330011,2.6621,187.72,187.67,20.49112769]
[1730990331115,3.2496,187.76,187.67,20.49112769]
[1730990331812,2.6619,187.73,187.67,20.49112769]
[1730990332013,2.6619,187.73,187.68,1.6422]
[1730990332909,2.662,187.72,187.67,20.49112769]
[1730990333311,20.49112769,187.77,187.64,20.49112769]
[1730990333509,2.6626,187.68,187.61,20.49112769]
[1730990333707,20.49112769,187.74,187.61,20.49112769]
[1730990333902,2.6627,187.68,187.61,20.49112769]
[1730990334709,20.49112769,187.74,187.61,20.49112769]
[1730990334907,1.6483,187.73,187.6,1.6042]
[1730990335107,3.3585,187.73,187.6,1.6042]
[1730990335313,20.49112769,187.71,187.55,0.2034]
[1730990335513,20.49112769,187.68,187.56,0.97916691]
[1730990335819,20.49112769,187.68,187.55,1.6232]
[1730990336014,2.664,187.59,187.55,1.6232]
[1730990336409,2.664,187.58,187.55,1.6232]
[1730990336809,20.49112769,187.68,187.54,2.6645]
[1730990337318,20.49112769,187.68,187.52,20.49112769]
[1730990337519,20.49112769,187.68,187.53,0.97937049]
[1730990337725,20.49112769,187.68,187.55,20.49112769]
[1730990338918,20.49112769,187.68,187.58,2.664]
[1730990339120,20.49112769,187.71,187.55,20.49112769]
[1730990339415,20.49112769,187.71,187.56,0.9792027]
[1730990339619,2.6632,187.65,187.59,2.6637]
[1730990340311,2.6632,187.64,187.59,2.6637]
[1730990340816,2.6628,187.67,187.58,20.49112769]
[1730990341020,1.6615,187.72,187.58,20.49112769]
[1730990341319,1.6483,187.73,187.61,20.49112769]
[1730990341625,2.6626,187.69,187.63,2.6633]
[1730990342321,1.6483,187.73,187.63,2.6633]
[1730990342717,1.6483,187.73,187.62,1.6828]
[1730990342916,2.6624,187.7,187.65,2.663]
[1730990343122,1.6483,187.73,187.62,1.6828]
[1730990343414,20.49112769,187.78,187.64,20.49112769]
[1730990343721,1.6824,187.79,187.64,20.49112769]
[1730990344116,20.49112769,187.77,187.62,1.6828]
[1730990344415,20.49112769,187.74,187.62,1.6828]
[1730990344615,20.49112769,187.71,187.62,1.6828]
[1730990344816,2.663,187.66,187.62,1.6828]
[1730990345015,2.663,187.66,187.6,2.6637]
[1730990345217,2.663,187.66,187.61,2.6636]
[1730990345819,1.6514,187.7,187.64,2.663]
[1730990346023,1.6293,187.73,187.61,20.49112769]
[1730990346224,1.6293,187.73,187.62,1.6997]
[1730990347016,20.49112769,187.71,187.62,1.6997]
[1730990347228,2.6632,187.64,187.58,20.49112769]
[1730990347418,2.6632,187.64,187.55,6.12]
[1730990347720,2.6636,187.61,187.56,2.6643]
[1730990348920,1.717,187.67,187.56,2.6643]
[1730990349124,2.6636,187.61,187.56,2.6643]
[1730990349522,1.717,187.67,187.54,20.49112769]
[1730990349713,2.6635,187.62,187.57,2.6641]
[1730990350823,1.717,187.67,187.54,20.49112769]
[1730990351018,1.717,187.67,187.57,20.49112769]
[1730990351218,20.49112769,187.71,187.57,20.49112769]
[1730990351527,3.2353,187.73,187.64,2.6631]
[1730990352019,2.6626,187.69,187.64,2.6631]
[1730990352421,3.2353,187.73,187.64,2.6631]
[1730990352825,3.2353,187.73,187.61,1.6769]
[1730990353726,2.6626,187.69,187.64,2.6631]
[1730990353923,3.2353,187.73,187.61,1.6769]
[1730990354323,2.6626,187.68,187.63,2.6633]
[1730990355026,2.6628,187.67,187.62,2.6634]
[1730990355831,2.6628,187.67,187.63,2.6633]
[1730990356017,3.2353,187.73,187.63,2.6633]
[1730990356221,2.6626,187.68,187.63,2.6633]
[1730990356524,3.2353,187.73,187.63,2.6633]
[1730990357519,2.663,187.65,187.61,4.3405]
[1730990358326,20.49112769,187.71,187.54,20.49112769]
[1730990358923,20.49112769,187.68,187.54,20.49112769]
[1730990359429,2.6636,187.62,187.57,2.6641]
[1730990360127,2.6636,187.61,187.57,2.6641]
[1730990361430,2.6638,187.6,187.54,20.49112769]
[1730990361824,1.5729,187.67,187.54,20.49112769]
[1730990362135,1.5729,187.67,187.58,2.664]
[1730990362324,1.5729,187.67,187.54,20.49112769]
[1730990362529,2.6633,187.64,187.57,2.6641]
[1730990362723,1.5729,187.67,187.57,2.6641]
[1730990363936,1.5729,187.67,187.54,20.49112769]
[1730990364134,20.49112769,187.71,187.54,20.49112769]
[1730990364428,2.663,187.65,187.54,20.49112769]
[1730990364630,20.49112769,187.71,187.54,20.49112769]
[1730990364838,20.49112769,187.71,187.57,20.49112769]
[1730990365134,1.6006,187.72,187.57,20.49112769]
[1730990365731,1.6006,187.72,187.54,20.49112769]
[1730990365732,20.49112769,187.71,187.54,20.49112769]
[1730990365933,20.49112769,187.68,187.54,20.49112769]
[1730990366136,2.6634,187.63,187.58,2.664]
[1730990366434,2.6634,187.63,187.54,20.49112769]
[1730990366739,2.6634,187.63,187.58,2.6639]
[1730990366934,2.6634,187.63,187.54,20.49112769]
[1730990367326,20.49112769,187.68,187.54,20.49112769]
[1730990367536,20.49112769,187.71,187.54,20.49112769]
[1730990368134,20.49112769,187.71,187.57,20.49112769]
[1730990368434,2.6627,187.68,187.63,2.6632]
[1730990368639,2.6627,187.68,187.57,20.49112769]
[1730990368640,1.6006,187.72,187.6,20.49112769]
[1730990368835,1.6006,187.72,187.61,1.608]
[1730990369632,2.6628,187.67,187.64,2.6631]
[1730990369825,20.49112769,187.71,187.57,20.49112769]
[1730990370034,20.49112769,187.71,187.54,22.09912769]
[1730990370534,2.6634,187.63,187.59,2.6639]
[1730990371236,2.6635,187.62,187.57,2.6641]
[1730990371438,2.6635,187.62,187.54,22.09912769]
[1730990371439,2.6635,187.62,187.54,27.91912769]
[1730990371832,20.49112769,187.71,187.54,27.91912769]
[1730990372034,2.6633,187.63,187.54,27.91912769]
[1730990372840,20.49112769,187.71,187.57,20.49112769]
[1730990373230,20.49112769,187.71,187.62,2.6633]
[1730990373534,20.49112769,187.71,187.54,346.428]
[1730990373535,20.49112769,187.71,187.54,366.91912769]
[1730990374235,20.49112769,187.71,187.59,2.6638]
[1730990374637,20.49112769,187.71,187.54,361.09912769]
[1730990374837,2.6633,187.63,187.59,2.6638]
[1730990375332,20.49112769,187.71,187.59,2.6638]
[1730990375533,2.6633,187.63,187.59,2.6638]
[1730990376131,2.6633,187.63,187.6,2.6637]
[1730990376331,2.6633,187.63,187.54,366.91912769]
[1730990376332,2.6629,187.66,187.54,366.91912769]
[1730990376532,20.49112769,187.64,187.54,340.608]
[1730990377139,1.5664,187.65,187.54,340.608]
[1730990378042,1.5664,187.65,187.55,20.49112769]
[1730990378444,4.2294,187.65,187.55,20.49112769]
[1730990378845,1.5664,187.65,187.55,20.49112769]
[1730990379046,1.5664,187.65,187.54,1.608]
[1730990380739,2.6637,187.61,187.57,2.6641]
[1730990380941,2.6637,187.61,187.54,1.608]
[1730990381143,1.5664,187.65,187.54,1.608]
[1730990381542,2.6635,187.62,187.54,1.608]
[1730990381738,1.5664,187.65,187.54,1.608]
[1730990382547,2.6633,187.63,187.58,2.664]
[1730990383943,4.2296,187.65,187.6,2.6637]
[1730990384154,1.6006,187.72,187.58,20.49112769]
[1730990384342,3.285,187.72,187.59,5.56]
[1730990385747,3.285,187.72,187.61,2.6636]
[1730990385949,3.285,187.72,187.59,5.56]
[1730990386153,2.6633,187.63,187.59,8.2238]
[1730990386354,2.6633,187.63,187.59,5.56]
[1730990386558,2.6633,187.63,187.45,45.30528261]
[1730990386559,20.49112769,187.63,187.46,377.34]
[1730990386753,2.6641,187.58,187.53,2.6647]
[1730990387559,3.3615,187.62,187.49,26.05112769]
[1730990387852,2.664,187.58,187.49,26.05112769]
[1730990388856,2.6637,187.6,187.49,26.05112769]
[1730990389457,2.6637,187.6,187.55,2.6643]
[1730990389948,2.6637,187.6,187.56,2.6643]
[1730990390855,1.6844,187.62,187.52,20.49112769]
[1730990391157,20.49112769,187.69,187.55,20.49112769]
[1730990391364,3.2316,187.71,187.58,20.49112769]
[1730990391563,2.6629,187.66,187.58,20.49112769]
[1730990391867,20.49112769,187.69,187.56,1.7234]
[1730990392060,2.6631,187.65,187.56,1.7234]
[1730990392659,2.6625,187.69,187.58,20.49112769]
[1730990393057,3.2316,187.71,187.58,20.49112769]
[1730990393264,2.6627,187.68,187.63,2.6632]
[1730990393666,3.2316,187.71,187.63,2.6632]
[1730990393866,2.6629,187.67,187.62,2.6633]
[1730990394060,2.6629,187.67,187.58,20.49112769]
[1730990394262,3.2316,187.71,187.58,20.49112769]
[1730990394567,3.2316,187.71,187.63,2.6632]
[1730990394964,2.6628,187.67,187.63,2.6632]
[1730990396364,3.2316,187.71,187.61,2.6635]
[1730990397365,3.2316,187.71,187.58,20.49112769]
[1730990397666,3.2316,187.71,187.59,5.52358452]
[1730990397866,3.2316,187.71,187.65,2.6629]
[1730990398059,20.49112769,187.77,187.61,20.49112769]
[1730990398271,7.28868754,187.76,187.61,20.49112769]
[1730990398564,7.28868754,187.76,187.59,5.52413647]
[1730990398565,2.6616,187.75,187.65,20.49112769]
[1730990398763,7.28868754,187.76,187.66,1.5707]
[1730990398966,1.6001,187.76,187.7,2.6623]
[1730990399166,2.6617,187.75,187.7,2.6623]
[1730990399564,1.6001,187.76,187.69,2.6624]
[1730990399871,2.6618,187.74,187.66,1.5707]
[1730990400167,1.6001,187.76,187.6,339.0]
[1730990400168,7.2853583,187.76,187.6,339.0]
[1730990400369,2.663,187.66,187.56,1.6604]
[1730990400566,20.49112769,187.7,187.57,5.52445894]
[1730990400763,1.6386,187.69,187.58,5.52445894]
[1730990401068,20.49112769,187.73,187.58,20.49112769]
[1730990401275,20.49112769,187.73,187.65,2.663]
[1730990401470,1.6386,187.74,187.62,20.49112769]
[1730990401676,1.6386,187.74,187.62,26.03112769]
[1730990401877,1.6386,187.74,187.67,2.6627]
[1730990402171,20.49112769,187.73,187.58,20.49112769]
[1730990402371,22.11822769,187.73,187.61,2.6636]
[1730990402566,20.49112769,187.7,187.61,2.6636]
[1730990403173,20.49112769,187.7,187.56,346.2004]
[1730990403369,20.49112769,187.7,187.6,2.6637]
[1730990403569,2.6631,187.65,187.56,7.2004]
[1730990403764,1.6271,187.73,187.59,20.49112769]
[1730990403970,1.6271,187.73,187.6,5.52691218]
[1730990404173,2.6625,187.69,187.59,20.49112769]
[1730990404375,2.6625,187.69,187.6,5.52661452]
[1730990404580,2.6625,187.69,187.61,5.52661452]
[1730990404768,2.6625,187.69,187.62,5.52661452]
[1730990405075,2.6625,187.69,187.59,20.49112769]
[1730990405274,2.6625,187.69,187.64,2.663]
[1730990405775,2.6626,187.68,187.64,2.663]
[1730990405979,20.49112769,187.71,187.56,22.15152769]
[1730990406170,1.7215,187.67,187.57,5.52741344]
[1730990406371,2.6635,187.62,187.58,5.52741344]
[1730990406570,2.6635,187.62,187.56,1.6604]
[1730990406770,2.6635,187.62,187.57,5.52742034]
[1730990407070,1.7215,187.67,187.58,5.52742034]
[1730990407071,20.49112769,187.65,187.58,5.52742034]
[1730990407269,1.6762,187.64,187.5,20.49112769]
[1730990407471,2.6642,187.57,187.52,2.6648]
[1730990407880,2.6642,187.57,187.53,5.52788828]
[1730990408077,2.6642,187.57,187.54,5.52788828]
[1730990408264,2.6642,187.57,187.52,2.6648]
[1730990408265,2.6642,187.57,187.55,5.52788828]
[1730990408469,2.6642,187.57,187.52,2.6648]
[1730990408670,2.6642,187.57,187.53,5.52739559]
[1730990408969,2.664,187.59,187.54,8.19199559]
[1730990409172,20.49112769,187.62,187.55,5.52739559]
[1730990409370,20.49112769,187.62,187.5,20.49112769]
[1730990409573,2.6639,187.59,187.51,5.52751852]
[1730990409768,2.6639,187.59,187.52,5.52751852]
[1730990409970,2.6639,187.59,187.53,5.52751852]
[1730990410267,2.6639,187.59,187.54,8.19201852]
[1730990410470,2.6637,187.61,187.5,20.49112769]
[1730990410677,3.2611,187.64,187.5,20.49112769]
[1730990410678,3.2611,187.64,187.51,5.52733811]
[1730990410888,3.2611,187.64,187.5,20.49112769]
[1730990410889,2.6635,187.62,187.5,20.49112769]
[1730990411268,1.7215,187.67,187.56,20.49112769]
[1730990411473,2.6629,187.66,187.57,5.52703313]
[1730990411670,2.6629,187.66,187.57,1.6452]
[1730990411874,2.6629,187.66,187.58,5.52689027]
[1730990412073,2.6629,187.66,187.57,1.6452]
[1730990412273,2.6629,187.66,187.61,2.6635]
[1730990412473,4.3843,187.67,187.57,1.6452]
[1730990412672,4.3843,187.67,187.58,5.52718787]
[1730990412975,1.7215,187.67,187.63,2.6633]
[1730990413176,3.3142,187.73,187.59,20.49112769]
[1730990413378,1.6128,187.72,187.64,2.663]
[1730990414685,2.6625,187.69,187.64,2.663]
[1730990415078,1.6128,187.72,187.64,2.663]
[1730990415273,2.6629,187.67,187.59,20.49112769]
[1730990415478,20.49112769,187.71,187.57,1.6452]
[1730990415673,20.49112769,187.71,187.58,5.52848707]
[1730990415873,1.6128,187.72,187.59,26.01950418]
[1730990416071,1.6128,187.72,187.59,20.49112769]
[1730990416479,2.6623,187.71,187.66,2.6628]
[1730990417088,1.6128,187.72,187.59,20.49112769]
[1730990417277,5.76,187.78,187.62,20.49112769]
[1730990417278,20.49112769,187.77,187.62,20.49112769]
[1730990417586,1.7323,187.77,187.65,20.49112769]
[1730990417882,2.6616,187.76,187.71,2.6621]
[1730990419784,7.494,187.84,187.66,1.7047]
[1730990419785,2.6613,187.78,187.68,20.49112769]
[1730990419988,1.7323,187.83,187.71,20.49112769]
[1730990420180,0.2196,187.79,187.71,20.49112769]
[1730990421284,20.49112769,187.89,187.74,20.49112769]
[1730990421486,2.6602,187.86,187.8,2.6608]
[1730990421683,20.49112769,187.86,187.72,0.967]
[1730990421991,20.49112769,187.86,187.69,26.00627201]
[1730990422186,2.6609,187.81,187.74,2.6617]
[1730990422786,2.6609,187.81,187.72,2.6619]
[1730990422986,2.6609,187.81,187.69,20.49112769]
[1730990423688,1.6375,187.82,187.69,20.49112769]
[1730990423875,1.6375,187.82,187.68,344.76]
[1730990423876,20.49112769,187.81,187.68,344.76]
[1730990424075,23.84092769,187.81,187.68,344.76]
[1730990424480,2.6614,187.77,187.7,2.6623]
[1730990426990,23.84092769,187.81,187.68,4.3042]
[1730990428087,2.6619,187.74,187.68,4.3042]
[1730990428284,23.84092769,187.81,187.68,1.6417]
[1730990428792,23.84092769,187.81,187.48,5.56088207]
[1730990428793,20.49112769,187.77,187.63,339.0]
[1730990428990,20.49112769,187.77,187.62,25.99112769]
[1730990429287,20.49112769,187.77,187.65,2.6629]
[1730990429493,20.49112769,187.77,187.62,25.99112769]
[1730990429792,2.6618,187.74,187.69,2.6624]
[1730990430093,2.6618,187.74,187.65,20.49112769]
[1730990430295,20.49112769,187.8,187.65,20.49112769]
[1730990430493,2.6616,187.76,187.71,2.6621]
[1730990432201,20.49112769,187.8,187.7,2.6623]
[1730990432396,20.49112769,187.77,187.62,364.99112769]
[1730990432692,20.49112769,187.77,187.62,25.99112769]
[1730990433100,20.49112769,187.8,187.65,20.49112769]
[1730990433608,2.6616,187.75,187.7,2.6623]
[1730990433793,20.49112769,187.8,187.65,20.49112769]
[1730990434099,2.6615,187.76,187.65,20.49112769]
[1730990434295,20.49112769,187.8,187.65,20.49112769]
[1730990434602,2.6613,187.77,187.66,0.7492]
[1730990435704,2.6613,187.77,187.69,12.78300976]
[1730990436596,2.6613,187.77,187.71,2.6621]
[1730990436993,12.78300976,187.78,187.67,12.78300976]
[1730990437601,2.6619,187.74,187.68,2.6625]
[1730990438198,2.6619,187.74,187.69,2.6625]
[1730990439701,12.78300976,187.78,187.67,12.78300976]
[1730990439902,12.78300976,187.76,187.67,2.6627]
[1730990440106,12.78300976,187.73,187.61,339.0]
[1730990440408,1.7132,187.72,187.61,12.78300976]
[1730990440705,12.78300976,187.71,187.61,12.78300976]
[1730990440905,14.46390976,187.71,187.61,12.78300976]
[1730990441802,1.6809,187.71,187.64,12.78300976]
[1730990441997,3.278,187.72,187.64,12.78300976]
[1730990443796,2.6625,187.69,187.64,15.44610976]
[1730990444802,3.278,187.72,187.64,12.78300976]
[1730990445006,12.78300976,187.76,187.66,12.78300976]
[1730990445809,2.662,187.73,187.68,2.6625]
[1730990447609,2.6618,187.74,187.7,2.6623]
[1730990448714,3.2724,187.77,187.69,12.78300976]
[1730990448715,1.5825,187.77,187.69,12.78300976]
[1730990449212,14.40820976,187.82,187.69,12.78300976]
[1730990449413,1.6252,187.82,187.72,12.78300976]
[1730990449614,2.661,187.8,187.74,2.6616]
[1730990449810,1.6252,187.82,187.74,2.6616]
[1730990450313,2.6611,187.79,187.75,2.6616]
[1730990451117,14.36380976,187.84,187.72,12.78300976]
[1730990451813,2.6609,187.81,187.76,2.6614]
[1730990452705,14.36380976,187.84,187.72,12.78300976]
[1730990452906,2.6611,187.79,187.74,2.6617]
[1730990454102,14.36380976,187.84,187.72,12.78300976]
[1730990454307,3.372,187.87,187.78,12.78300976]
[1730990454511,5.0284,187.87,187.78,12.78300976]
[1730990454705,5.0284,187.87,187.75,17.72300976]
[1730990454706,2.6607,187.82,187.75,17.72300976]
[1730990455110,12.78300976,187.84,187.75,4.94]
[1730990455612,12.78300976,187.84,187.76,2.6614]
[1730990455810,12.78300976,187.84,187.75,4.94]
[1730990456116,2.6608,187.81,187.76,2.6614]
[1730990456617,12.78300976,187.84,187.75,4.94]
[1730990456817,12.78300976,187.84,187.76,2.6613]
[1730990457021,2.6605,187.83,187.75,17.72300976]
[1730990457217,12.78300976,187.86,187.77,12.78300976]
[1730990457820,2.6604,187.84,187.8,2.6609]
[1730990458215,5.0284,187.87,187.77,12.78300976]
[1730990458418,1.6564,187.87,187.79,12.78300976]